[Event "20th Delhi GM Open 2023"]
[Site "New Delhi"]
[Date "2023.03.28"]
[Round "8.3"]
[White "Neelash Saha"]
[Black "Paichadze, Luka"]
[Result "1/2-1/2"]
[ECO "B12"]
[WhiteElo "2444"]
[BlackElo "2515"]
[Annotator "TA"]
[PlyCount "71"]
[EventDate "2023.03.23"]
[EventType "swiss"]
[EventCountry "IND"]
[SourceTitle "playchess.com"]
[Source "ChessBase"]
[SourceQuality "1"]
[TimeControl "5400+30"]

{[%evp 10,71,25,12,28,27,22,29,25,24,47,21,14,18,55,52,58,56,55,45,62,58,46,54,102,56,44,66,45,46,45,45,45,45,45,45,53,55,49,62,71,72,94,94,95,93,73,83,92,14,13,11,6,0,0,0,0,0,0,0,0,0,0,-21]} 1. e4 {[%emt 0:12:26]} c6 {[%emt 0:00:06]} 2. d4 {[%emt 0:00:03]} d5 {[%emt 0:00:04]} 3. e5 {[%emt 0:00:02]} Bf5 {[%emt 0:00:42]} 4. Nd2 {[%emt 0:00:09]} e6 {[%emt 0:00:50]} 5. Nb3 {[%emt 0:00:05]} Nd7 {[%emt 0:02:06]} 6. Nf3 {[%emt 0:00:32]} h6 {[%emt 0:03:31] B12: Caro-Kann: Advance Variation.} 7. Be2 {[%emt 0:00:09]} Ne7 {[%emt 0:00:13]} 8. O-O {[%emt 0:00:04]} Qc7 {[%emt 0:07:10] White has an edge.} 9. c3 {[%emt 0:01:20]} a6 {[%emt 0:04:32]} 10. Ne1 {[%emt 0:02:58] [#]} c5 $146 {[%emt 0:00:59]} ({Predecessor:} 10... Bh7 11. f4 c5 12. Be3 Nf5 13. Bf2 g5 14. fxg5 hxg5 15. Nf3 Be7 16. g4 Nh4 {0-1 Sharma,D (2363)-Lalith,B (2570) IND-ch Challengers 53rd 2015 (9)}) 11. Be3 {[%emt 0:00:24][%cal Rb3c5]} Bh7 {[%emt 0:02:36]} 12. Nxc5 {[%emt 0:01:57]} Nxc5 {[%emt 0:00:30]} 13. dxc5 {[%emt 0:00:05]} Qxe5 {[%emt 0:07:26]} 14. Qa4+ {[%emt 0:01:01]} Nc6 {[%emt 0:00:41]} 15. Nf3 {[%emt 0:00:27]} Qc7 {[%emt 0:01:02]} 16. b4 {[%emt 0:00:06]} Qc8 {[%emt 0:04:55]} (16... Be4 $14) 17. c4 {[%emt 0:07:00] White has more active pieces.} (17. Bd4 $16) 17... Be7 $14 {[%emt 0:03:31]} 18. cxd5 {[%emt 0:15:01]} exd5 {[%emt 0:00:04]} 19. Rfd1 {[%emt 0:00:06]} Be4 {[%emt 0:02:15]} 20. Nd2 {[%emt 0:00:06][%cal Bf3d2,Bd2b3,Bb3a5][%mdl 32] Nxe4 is the strong threat.} Bf5 {[%emt 0:06:38]} 21. Bf3 {[%emt 0:01:13]} Be6 {[%emt 0:21:27]} 22. Nb3 {[%emt 0:01:04]} Bf6 {[%emt 0:00:45]} 23. Rac1 {[%emt 0:02:15]} O-O {[%emt 0:00:49]} 24. Bxd5 {[%emt 0:02:16]} Bxd5 {[%emt 0:00:05]} 25. Rxd5 {[%emt 0:00:03]} Qg4 {[%emt 0:00:35]} 26. Na5 {[%emt 0:03:24]} Qxb4 {[%emt 0:08:26]} 27. Qxb4 {[%emt 0:00:04]} Nxb4 {[%emt 0:00:04]} 28. Rd2 {[%emt 0:00:04]} Rab8 {[%emt 0:02:41]} 29. Bf4 {[%emt 0:04:33]} ({Better is} 29. Rb1 $16) 29... Bg5 $1 $11 {[%emt 0:00:05] The position is equal.} 30. Bxg5 {[%emt 0:00:29]} hxg5 {[%emt 0:00:02]} 31. Rb1 {[%emt 0:00:50]} (31. a3 $5 Nc6 $8 32. Nxc6 bxc6 33. h3 $11) 31... Nc6 {[%emt 0:00:16]} 32. Nc4 {[%emt 0:05:53]} Rfc8 {[%emt 0:02:39]} 33. Rd7 {[%emt 0:06:43]} Nd8 {[%emt 0:04:16]} 34. Rbd1 {[%emt 0:02:08] [#] Threatens to win with Nb6.} Ne6 {[%emt 0:00:12]} 35. Nd6 {[%emt 0:00:12][%csl LRb7,LRc8,LRf7]} Rxc5 {[%emt 0:04:08]} 36. Nxf7 {[%emt 0:00:06] Weighted Error Value: White=0.07 (flawless) /Black=0.07 (flawless)} (36. Rxf7 $2 {too greedy.} Rd8 37. Rxb7 Rxd6 $19) 1/2-1/2

[Event "20th Delhi GM Open 2023"]
[Site "New Delhi"]
[Date "2023.03.28"]
[Round "8.4"]
[White "Mchedlishvili, Mikheil"]
[Black "Madaminov, Mukhiddin"]
[Result "1-0"]
[ECO "A16"]
[WhiteElo "2569"]
[BlackElo "2436"]
[Annotator "TA"]
[PlyCount "85"]
[EventDate "2023.03.23"]
[EventType "swiss"]
[EventCountry "IND"]
[SourceTitle "playchess.com"]
[Source "ChessBase"]
[SourceQuality "1"]
[TimeControl "5400+30"]

{[%evp 9,85,23,31,34,37,34,33,16,39,43,39,36,38,28,48,31,32,35,33,43,35,49,47,48,31,28,128,46,74,28,104,85,92,71,355,182,603,182,189,179,178,164,166,166,202,197,202,202,200,192,347,224,561,501,502,315,264,287,509,470,360,362,346,307,288,296,291,286,279,200,184,201,196,195,643,643,29998,29999]} 1. Nf3 {[%emt 0:00:06]} Nf6 {[%emt 0:00:36]} 2. c4 {[%emt 0:00:23]} g6 {[%emt 0:00:08]} 3. Nc3 {[%emt 0:00:58]} d5 {[%emt 0:00:05]} 4. cxd5 {[%emt 0:00:43]} Nxd5 {[%emt 0:00:24]} 5. h4 {[%emt 0:00:47][%cal Bh2h4,Bh4h5][%mdl 32]} Nxc3 {[%emt 0:00:17]} 6. bxc3 {[%emt 0:00:17] A16: English Opening: 1...Nf6 with ...d5.} Bg7 {[%emt 0:00:34]} 7. h5 {[%emt 0:00:59]} c5 {[%emt 0:00:07]} 8. Qa4+ {[%emt 0:01:44] White is slightly better.} Qd7 {[%emt 0:00:07]} 9. Qc4 {[%emt 0:01:07]} b6 {[%emt 0:01:32]} 10. Ng5 {[%emt 0:02:00]} e6 {[%emt 0:04:11]} 11. Qh4 {[%emt 0:02:27]} Qe7 {[%emt 0:08:49]} 12. hxg6 {[%emt 0:10:45]} hxg6 {[%emt 0:00:50]} 13. Qxh8+ {[%emt 0:00:17]} Bxh8 {[%emt 0:00:01]} 14. Rxh8+ {[%emt 0:00:08]} Kd7 {[%emt 0:00:04]} 15. d4 {Black must now prevent Ne4.} Nc6 {[%emt 0:16:47]} 16. Rh7 {[%emt 0:06:04]} Nd8 {[%emt 0:01:24]} (16... cxd4 $2 17. Rxf7 $18 (17. Nxf7 Ke8 $16) (17. Nxf7 Ke8 $18)) 17. Ne4 {[%emt 0:05:22] [#] Strongly threatening Bg5.} cxd4 $146 {[%emt 0:15:37] [#]} (17... Bb7 $1 $11 18. Bg5 Qf8) ({Predecessor:} 17... Bb7 18. Bg5 Qf8 19. Nf6+ Kc8 20. e4 a5 21. Rh3 Ba6 22. Bxa6+ Rxa6 23. e5 cxd4 {1-0 Rallabandi,P (2501)-Rawlings,A (2321) ENG-ch3 final email 2021}) 18. Bg5 {[%emt 0:02:36] White has more active pieces. The black rooks are badly placed.} (18. a4 $1 $16 {aiming for Ba3.} e5 19. g3) 18... Qa3 $14 {[%emt 0:00:20]} 19. Rd1 {[%emt 0:22:13]} Bb7 {[%emt 0:01:14]} (19... Qxa2 $2 20. Rxd4+ Kc6 21. Rd6+ (21. Rxd8 Qb1+ 22. Rd1 Qxe4 $16) 21... Kb5 22. e3+ Ka5 23. Rxd8 $18) (19... e5 $11 {keeps the balance.}) 20. Rxd4+ $16 {[%emt 0:01:19] Black is weak on the dark squares} Bd5 {[%emt 0:00:58] [#]} 21. c4 $1 {[%emt 0:02:17][%mdl 64] Pin. Some like it hot} Nc6 $2 {[%emt 0:11:12][%mdl 8192] This move loses the game for Black.} (21... Qb4+ $16 22. Nd2 b5) 22. Rd2 {[%emt 0:01:22]} (22. Rd1 $142) 22... Qc1+ $18 {[%emt 0:19:41]} 23. Rd1 {[%emt 0:00:25][%mdl 64] Discovered Attack} Qxd1+ {[%emt 0:00:06]} (23... Qxc4 $2 24. Rxf7+ $18) 24. Kxd1 {[%emt 0:00:06]} Bxe4 {[%emt 0:00:03]} 25. Rxf7+ {[%emt 0:01:41]} Kd6 {[%emt 0:00:04]} 26. a3 {[%emt 0:08:16]} Bb1 {[%emt 0:09:58]} 27. e3 {[%emt 0:05:08]} Rh8 {[%emt 0:04:59]} 28. Be2 {[%emt 0:03:07]} Rh1+ {[%emt 0:01:16]} 29. Kd2 {[%emt 0:00:06]} Rg1 $2 {[%emt 0:00:37]} (29... Be4 30. f3 Bb1) 30. g4 {[%emt 0:07:59] Bh6 would be deadly.} Kc5 $2 {[%emt 0:01:22]} (30... Ba2 31. Bf4+ e5) 31. Bh6 {[%emt 0:02:24] Bf8+ would kill now.} Ne5 {[%emt 0:02:01]} 32. Rc7+ {[%emt 0:00:21]} ({Weaker is} 32. Rxa7 Nxc4+ 33. Bxc4 Kxc4 $16) 32... Kd6 {[%emt 0:00:12]} 33. Rxa7 {[%emt 0:00:17] And now Bf8+ would win.} Nxg4 $2 {[%emt 0:00:53]} (33... Nd7 34. Bg5 Rg2) 34. Bf8+ {[%emt 0:00:51]} Ke5 {[%emt 0:00:03]} 35. Rf7 {[%emt 0:05:54] Hoping for f3.} Rg2 {[%emt 0:00:44]} 36. f3 {[%emt 0:02:14]} Ba2 {[%emt 0:00:42]} 37. Rf4 {[%emt 0:01:39]} ({Inferior is} 37. fxg4 Bxc4 38. Bg7+ Kd6 $11) 37... Nh2 {[%emt 0:00:28][%cal Oh2f3]} 38. Ke1 {[%emt 0:01:24]} g5 {[%emt 0:00:16]} 39. Bg7+ {[%emt 0:00:31]} Kd6 {[%emt 0:00:05]} 40. Rd4+ {[%emt 0:00:03]} Ke7 {[%emt 0:01:11]} 41. Be5 {[%emt 0:00:13]} Kf7 $2 {[%emt 0:00:30]} (41... Bb1 42. Bc7 Bf5) 42. Rd7+ {[%emt 0:01:27]} Kg6 {[%emt 0:00:02][%cal Oa2c4]} 43. Bd3+ {[%emt 0:00:50] An entertaining game by Mchedlishvili.   Weighted Error Value: White=0.24 (precise) /Black=0.64} 1-0

[Event "20th Delhi GM Open 2023"]
[Site "New Delhi"]
[Date "2023.03.28"]
[Round "8.5"]
[White "Ratnakaran, K.."]
[Black "Pantsulaia, Levan"]
[Result "0-1"]
[ECO "B30"]
[WhiteElo "2275"]
[BlackElo "2597"]
[Annotator "TA"]
[PlyCount "106"]
[EventDate "2023.03.23"]
[EventType "swiss"]
[EventCountry "IND"]
[SourceTitle "playchess.com"]
[Source "ChessBase"]
[SourceQuality "1"]
[TimeControl "5400+30"]

{[%evp 11,105,8,8,8,12,0,30,-6,0,5,7,-14,-22,-10,-21,-28,-22,-20,0,0,0,-28,-8,-31,-31,-39,-41,-47,-29,-42,-35,-33,-30,-90,-87,-97,-81,-133,-115,-124,-87,-152,-129,-145,-133,-158,-152,-141,-135,-167,-177,-177,-135,-241,-135,-159,-129,-118,-148,-164,-147,-149,-151,-193,-163,-163,-85,-113,-118,-147,-75,-110,-61,-55,-68,-55,-67,-176,-175,-172,-135,-200,-197,-309,-294,-302,-314,-1306,-521,-1291,-533,-472,-468,-29998,-29999,-29999]} 1. e4 {[%emt 0:05:48]} c5 {[%emt 0:00:19]} 2. Nf3 {[%emt 0:00:08]} e6 {[%emt 0:00:08]} 3. d3 {[%emt 0:00:11]} Nc6 {[%emt 0:00:17]} 4. g3 {[%emt 0:00:07]} Nf6 {[%emt 0:01:21]} 5. Bg2 {[%emt 0:00:08]} d6 {[%emt 0:00:07]} 6. O-O {[%emt 0:00:07]} Be7 {[%emt 0:00:02]} 7. b3 {[%emt 0:01:06] B30: Sicilian: 2...Nc6 3 Bb5, lines without ...g6.} O-O {[%emt 0:01:47]} 8. Bb2 {[%emt 0:00:05]} Nd7 $5 {[%emt 0:09:53][%mdl 4] An interesting side line.} 9. Nbd2 {[%emt 0:00:12] White has an edge.} Bf6 {[%emt 0:00:41]} 10. Bxf6 {[%emt 0:00:15]} Nxf6 {[%emt 0:00:59] [#]} 11. Nh4 $146 {[%emt 0:00:49][%cal Bf3h4,Bh4f5,Bf5d6][%mdl 32]} ({Predecessor:} 11. Ne1 d5 12. Kh1 b6 13. f4 dxe4 14. Nxe4 Nd5 15. Qd2 Bb7 16. Nf3 Qc7 17. Rae1 {0-1 Bach,J (1683)-Effertz,J (2037) Moehnesee Cup 36th 2010 (5)}) 11... e5 {[%emt 0:00:29]} 12. Nc4 {[%emt 0:01:07]} Be6 13. Re1 {[%emt 0:04:51]} b5 {[%emt 0:24:55]} 14. Ne3 {[%emt 0:06:25]} Nd7 {[%emt 0:01:24]} 15. Nhf5 {[%emt 0:02:18]} Nb6 {[%emt 0:00:18]} 16. c4 {[%emt 0:03:22]} (16. Qg4 g6 17. a4 bxa4 18. bxa4 a5 $17) 16... Nd4 {[%emt 0:04:08]} 17. cxb5 {[%emt 0:07:07]} Nxb5 {[%emt 0:01:28]} 18. a4 {[%emt 0:00:04]} Nd4 {[%emt 0:04:08]} 19. a5 {[%emt 0:00:07]} Nd7 {[%emt 0:05:13]} 20. Nxd6 {[%emt 0:07:43]} Rb8 {[%emt 0:02:26]} 21. Ndc4 {[%emt 0:06:51]} Rxb3 {[%emt 0:00:21]} 22. f4 {[%emt 0:01:02]} (22. Nd5 $11) 22... exf4 $17 {[%emt 0:04:52]} 23. gxf4 {[%emt 0:03:20]} Qh4 {[%emt 0:00:04]} 24. f5 {[%emt 0:03:50]} (24. Rf1 $142) 24... Bxc4 {[%emt 0:01:28]} 25. Nxc4 {[%emt 0:00:08]} Qf6 {[%emt 0:03:49]} 26. Rb1 {[%emt 0:06:56]} (26. e5 $142 Qxf5 27. Re3) 26... Rfb8 $1 {[%emt 0:01:43][%cal Bf8b8,Bb8b3,Bb3d3][%mdl 32]} 27. Rxb3 {[%emt 0:01:17]} Rxb3 {[%emt 0:00:04]} 28. Qg4 {[%emt 0:07:25]} Ne5 $1 {[%emt 0:01:27]} (28... Rxd3 $6 29. e5 Qe7 30. Be4 Nxe5 31. f6 Ndf3+ 32. Kh1 Qxf6 33. Bxd3 $11) 29. Nxe5 {[%emt 0:00:21]} Qxe5 {[%emt 0:00:05]} 30. f6 {[%emt 0:00:10][%csl Gf6][%cal Rg4g7]} Ne6 {[%emt 0:00:03] Active counter play!} 31. fxg7 {[%emt 0:00:44]} Rxd3 {[%emt 0:00:17]} 32. Rf1 {[%emt 0:00:58] [#]} (32. Kh1 $17) 32... Qxg7 {[%emt 0:03:03]} (32... Nxg7 33. Qc8+ Ne8 34. Qf5 Qxf5 35. Rxf5 $15) (32... c4 $1 $19 {[%cal Rc4c3]} 33. Rxf7 Rd2) 33. Qe2 {[%emt 0:00:56]} Ra3 {[%emt 0:07:25]} 34. e5 {[%emt 0:03:08]} Rxa5 {[%emt 0:09:48]} 35. Kh1 {[%emt 0:04:19] [#]} c4 $1 {[%emt 0:00:05][%mdl 64] Deflection} 36. Qxc4 {[%emt 0:00:08]} Qxe5 {[%emt 0:00:07]} (36... Rxe5 37. Bd5 $17) 37. Rg1 {[%emt 0:07:15]} Kf8 {[%emt 0:07:57]} ({Not} 37... Rc5 38. Qh4 Qf4 39. Qe7 $17 (39. Be4+ Kf8 $17)) 38. Qc8+ {[%emt 0:02:45]} Ke7 {[%emt 0:00:00]} (38... Kg7 $19 {Threatens to win with ...Ra1.} 39. Bb7+ Kh6) 39. Qb7+ {[%emt 0:00:15]} Kf6 {[%emt 0:00:00] White must now prevent ...Ra1.} 40. Qb1 {[%emt 0:04:50] Against Ra1} Nf8 {[%emt 0:04:58]} (40... Nf4 $142 {...Nxg2 would be deadly.} 41. Re1 Qc3) 41. Re1 {[%emt 0:03:52]} Qb5 {[%emt 0:00:44]} ({Black should try} 41... Qd4 $17 42. Rd1 Qb6) 42. Qc2 {[%emt 0:01:47]} Kg7 {[%emt 0:00:53]} 43. Qc3+ {[%emt 0:01:00]} Kg8 {[%emt 0:00:01]} 44. Bc6 {[%emt 0:00:06]} (44. Rf1 $1 $15) 44... Qc5 $19 {[%emt 0:00:22]} 45. Qf3 {[%emt 0:02:34]} Qf5 {[%emt 0:02:09]} 46. Qb3 {[%emt 0:01:41]} (46. Qxf5 $17 {was necessary.} Rxf5 47. Re7) 46... Ng6 {[%emt 0:00:53]} 47. Re8+ {[%emt 0:02:57]} (47. Bg2 $142) 47... Kg7 {[%emt 0:00:01][%cal Rf5f1]} 48. Qc3+ {[%emt 0:00:05]} Re5 {[%emt 0:00:07][%cal Rf5f1]} 49. Bf3 $2 {[%emt 0:01:08]} (49. Qa1) 49... a5 {[%emt 0:00:54]} (49... Qb1+ $142 50. Kg2 Nf4+ 51. Kf2 Qb6+ 52. Kf1 Qb5+ 53. Kg1 Qxe8) 50. Kg1 {[%emt 0:00:40]} Qf6 {[%emt 0:00:10]} (50... Nh4 $142 51. Bg2 Qb1+ 52. Bf1 Qg6+ 53. Kh1 Nf3 54. Qxf3 Rxe8) 51. Rxe5 {[%emt 0:00:20]} Qxe5 {[%emt 0:00:05]} (51... Nxe5 $2 {too greedy.} 52. Bd1 $19) 52. Qa3 {[%emt 0:00:22]} (52. Qxe5+ $19 Nxe5 53. Bd1) 52... Qe1+ {[%emt 0:00:14]} 53. Kg2 {[%emt 0:00:08]} Nf4# {[%emt 0:00:08] Excellently played by Pantsulaia!   Weighted Error Value: White=0.60/Black=0.37} 0-1

[Event "20th Delhi GM Open 2023"]
[Site "New Delhi"]
[Date "2023.03.28"]
[Round "8.6"]
[White "Savchenko, Boris"]
[Black "Srihari L R"]
[Result "1-0"]
[ECO "B78"]
[WhiteElo "2552"]
[BlackElo "2432"]
[Annotator "TA"]
[PlyCount "99"]
[EventDate "2023.03.23"]
[EventType "swiss"]
[EventCountry "IND"]
[SourceTitle "playchess.com"]
[Source "ChessBase"]
[SourceQuality "1"]
[TimeControl "5400+30"]

{[%evp 19,99,51,59,32,56,52,60,48,45,52,44,50,54,71,80,36,41,53,58,54,54,52,64,-41,69,77,95,100,102,98,134,128,122,125,210,206,212,210,183,164,284,270,270,270,270,270,352,326,636,650,646,630,911,912,821,858,811,789,993,985,959,947,949,920,1240,1233,1164,1149,5808,5334,12823,10249,12835,12835,12836,12836,12836,12836,12839,12839,12842,12842]} 1. e4 {[%emt 0:02:19]} c5 {[%emt 0:00:08]} 2. Nf3 {[%emt 0:00:07]} d6 {[%emt 0:00:06]} 3. d4 {[%emt 0:00:04]} cxd4 {[%emt 0:00:06]} 4. Nxd4 {[%emt 0:00:04]} Nf6 {[%emt 0:00:05]} 5. Nc3 {[%emt 0:00:06]} g6 {[%emt 0:00:06]} 6. Be3 {[%emt 0:01:13]} Bg7 {[%emt 0:00:08]} 7. f3 {[%emt 0:00:26]} Nc6 {[%emt 0:00:28]} 8. Qd2 {[%emt 0:00:10]} O-O {[%emt 0:00:09]} 9. Bc4 {[%emt 0:00:05]} Bd7 {[%emt 0:00:08]} 10. O-O-O {[%emt 0:00:09]} Rb8 {[%emt 0:00:08]} 11. Rhe1 {[%emt 0:00:24] B78: Sicilian Dragon: Yugoslav Attack, 9 Bc4 Bd7 10 0-0-0 Rc8.} (11. h4 $5 {[%cal Rd4c6]}) 11... Na5 {[%emt 0:03:05]} 12. Be2 {[%emt 0:02:31]} b5 {[%emt 0:13:34]} 13. Ndxb5 {White is slightly better.} (13. Ncxb5 e5 14. Nxd6 exd4 15. Bxd4 Be6 $17) 13... a6 {[%emt 0:12:46]} 14. Nd4 {[%emt 0:18:19]} Qc7 {[%emt 0:04:27]} 15. Nb3 {[%emt 0:07:12]} Be6 {[%emt 0:11:04][%cal Re6b3] [#]} 16. Kb1 $146 {[%emt 0:01:24]} ({Predecessor:} 16. Bd4 Bxb3 17. axb3 Rxb3 18. Bxf6 Bxf6 19. Nd5 Bxb2+ 20. Kb1 Rb7 21. Nxc7 Bc3+ 22. Kc1 {½-½ Savchenko,B (2612)-Mamedov,R (2650) EU-ch blitz Minsk 2015 (13.2)}) 16... Rb4 {[%emt 0:22:20]} 17. Bxa6 {[%emt 0:07:22] Nb5 is the strong threat.} Rfb8 {[%emt 0:10:35][%cal Ra5b3] [#] Wards off Nb5} 18. e5 $1 {[%emt 0:02:25]} dxe5 {[%emt 0:11:20][%cal Ra5b3] [#]} (18... Ne8 19. Nd5) 19. Nb5 $1 {[%emt 0:08:01]} Qc4 {[%emt 0:00:22][%cal Og7f8]} (19... R8xb5 $2 20. Bxb5 Nd5 21. Bd3 $18) 20. Bb6 $36 {[%emt 0:00:50][%mdl 2112] Discovered Attack. White is more active. Really sharp!} Nxb3 {[%emt 0:04:38]} 21. cxb3 {[%emt 0:03:42]} (21. axb3 $14 Rxb3 22. cxb3) 21... Rxb3 {[%emt 0:01:58]} (21... Qc6 $1 $15 22. Qxb4 Qxb6) 22. axb3 $14 {[%emt 0:00:17] Black is on the road to losing.} Qxb3 {[%emt 0:00:15] White must now prevent ...Qa2+.} 23. Qa5 {[%emt 0:00:33] Repels Qa2+} Nd5 {[%emt 0:01:18] ...Bf5+ would be deadly.} 24. Bc5 $1 {[%emt 0:02:40] And now Qa3 would win.} e4 {[%emt 0:02:44][%csl Gg7][%cal Rb3b2] [#]} 25. Qa3 {[%emt 0:00:17]} (25. fxe4 $2 Qxb2#) 25... Rxb5 {[%emt 0:00:22]} 26. Bxb5 {[%emt 0:06:25]} Nc3+ {[%emt 0:00:16] [#]} (26... Qxb5 $16 27. Qa8+ (27. fxe4 Nc3+ 28. Kc1 Nxd1 $17) (27. Bxe7 h5 $11) 27... Bf8 28. Rxd5 Bxd5 29. Qxd5 e6 30. Qxe4 Bxc5) 27. Ka1 $1 $18 {[%emt 0:00:44]} Nxd1 {[%emt 0:00:26]} 28. Qxb3 {[%emt 0:00:15]} (28. fxe4 $2 Bxb2+ 29. Kb1 Nc3#) 28... Bxb3 {[%emt 0:00:02]} 29. Ba3 {[%emt 0:00:18]} ({Don't play} 29. fxe4 $6 Bxb2+ 30. Kb1 Be5 $16) 29... e3 {[%emt 0:01:12]} (29... Bd4 $142) 30. Kb1 {[%emt 0:00:36]} ({Not} 30. Bxe7 Bxb2+ 31. Kb1 Bc3 $16) 30... Bd4 {[%emt 0:00:31]} 31. Be2 {[%emt 0:00:43]} ({But not} 31. Bxe7 $6 Kg7 32. Ba3 Kf6 $18) 31... Nf2 {[%emt 0:00:29]} 32. Bxe7 {[%emt 0:00:20]} h6 {[%emt 0:00:35]} 33. Rc1 {[%emt 0:00:38] Hoping for Bc5.} f5 $2 {[%emt 0:00:16]} (33... Be6 34. Rc6 Kg7) 34. Bc5 {[%emt 0:06:08] White is clearly winning.} Bxc5 {[%emt 0:00:09]} 35. Rxc5 {[%emt 0:00:06][%mdl 4096] Endgame KRB-KBN} f4 {[%emt 0:00:24]} 36. Kc1 {[%emt 0:00:18]} Kf7 {[%emt 0:00:45]} 37. Rc3 {[%emt 0:00:29]} Bd5 {[%emt 0:00:18]} 38. b4 {[%emt 0:00:18][%cal Bb2b4,Bb4b5][%mdl 32]} Ke6 {[%emt 0:00:18]} 39. b5 {[%emt 0:00:08]} Kd6 {[%emt 0:00:56]} 40. b6 {[%emt 0:00:08]} Bc6 {[%emt 0:00:05]} 41. Ba6 {[%emt 0:00:07]} Kd5 {[%emt 0:00:36]} 42. b7 {[%emt 0:00:33]} Bxb7 {[%emt 0:00:28]} 43. Bxb7+ {[%emt 0:00:07]} Kd4 {[%emt 0:00:03]} 44. Rc6 {[%emt 0:00:11]} g5 {[%emt 0:00:24]} 45. Rxh6 {[%emt 0:00:20]} Nd3+ {[%emt 0:00:32]} 46. Kd1 {[%emt 0:00:07]} Kc3 {[%emt 0:00:09]} 47. Ba6 {[%emt 0:00:19] Intending Bxd3 and mate.} Ne5 {[%emt 0:00:35]} 48. h3 {[%emt 0:01:03]} Kd4 {[%emt 0:01:44]} 49. Rf6 {[%emt 0:00:17]} Nd7 {[%emt 0:00:32]} 50. Rd6+ {[%emt 0:00:12] An entertaining game by Savchenko.   Weighted Error Value: White=0.08 (flawless) /Black=0.37} 1-0